[Event "Late-Titled-Tuesday-Blitz-March-12-2024"]
[Site "Chess.com"]
[Date "2024.03.12"]
[Round "10"]
[White "AccioChess"]
[Black "Mikasinski"]
[Result "0-1"]
[WhiteElo "2445"]
[BlackElo "2653"]
[TimeControl "180+1"]
[EndTime "15:52:46 PDT"]
[Termination "Mikasinski won by resignation"]

1. e4 {[%clk 0:03:00.3]} 1... c5 {[%clk 0:02:59.9]} 2. Nf3 {[%clk 0:02:58.5]}
2... d6 {[%clk 0:03:00.3]} 3. d4 {[%clk 0:02:58.6]} 3... cxd4 {[%clk 0:03:01.2]}
4. Nxd4 {[%clk 0:02:59.3]} 4... Nf6 {[%clk 0:03:01.9]} 5. Nc3 {[%clk 0:02:59.5]}
5... a6 {[%clk 0:03:02.6]} 6. Bg5 {[%clk 0:02:59.4]} 6... e6 {[%clk 0:03:02.6]}
7. f4 {[%clk 0:02:59.6]} 7... Be7 {[%clk 0:03:02.7]} 8. Qf3 {[%clk 0:02:59.5]}
8... Qc7 {[%clk 0:03:03.2]} 9. O-O-O {[%clk 0:02:59.6]} 9... b5 {[%clk
0:03:03.4]} 10. e5 {[%clk 0:02:57.8]} 10... Bb7 {[%clk 0:03:03.6]} 11. Qg3
{[%clk 0:02:56.6]} 11... dxe5 {[%clk 0:02:33.7]} 12. fxe5 {[%clk 0:02:57.5]}
12... Nh5 {[%clk 0:02:29.1]} 13. Qg4 {[%clk 0:02:54.2]} 13... Qxe5 {[%clk
0:02:26.5]} 14. Bxe7 {[%clk 0:02:48.7]} 14... Kxe7 {[%clk 0:02:26.9]} 15. Bxb5
{[%clk 0:02:41.5]} 15... axb5 {[%clk 0:02:18.8]} 16. Rhe1 {[%clk 0:02:41.3]}
16... Qf4+ {[%clk 0:02:17.6]} 17. Qxf4 {[%clk 0:02:39.4]} 17... Nxf4 {[%clk
0:02:18.1]} 18. Ndxb5 {[%clk 0:02:33.9]} 18... Nxg2 {[%clk 0:02:14.6]} 19. Re5
{[%clk 0:02:28.9]} 19... Rd8 {[%clk 0:02:06.5]} 20. Rxd8 {[%clk 0:02:22.7]}
20... Kxd8 {[%clk 0:02:05.9]} 21. Nd6 {[%clk 0:02:23.3]} 21... Bc6 {[%clk
0:02:00.8]} 22. Nxf7+ {[%clk 0:02:18.2]} 22... Ke7 {[%clk 0:02:00.9]} 23. Ng5
{[%clk 0:02:16.8]} 23... Kf6 {[%clk 0:02:01]} 24. Rc5 {[%clk 0:02:12.6]} 24...
h6 {[%clk 0:02:00.1]} 25. Nge4+ {[%clk 0:02:06.2]} 25... Bxe4 {[%clk 0:01:58.9]}
26. Nxe4+ {[%clk 0:02:05.6]} 26... Kg6 {[%clk 0:01:57.7]} 27. Rc8 {[%clk
0:01:59.9]} 27... Nf4 {[%clk 0:01:57.4]} 28. Nc5 {[%clk 0:01:43.7]} 28... Ne2+
{[%clk 0:01:53.3]} 29. Kd2 {[%clk 0:01:42.7]} 29... Nd4 {[%clk 0:01:49.9]} 30.
Kd3 {[%clk 0:01:34.2]} 30... Ndc6 {[%clk 0:01:44.6]} 31. Nxe6 {[%clk 0:01:27.9]}
31... Rxa2 {[%clk 0:01:43.1]} 32. Rc7 {[%clk 0:01:25.8]} 32... Ra7 {[%clk
0:01:40.1]} 33. Rxa7 {[%clk 0:01:17.3]} 33... Nxa7 {[%clk 0:01:38.4]} 34. b4
{[%clk 0:01:11.4]} 34... Kf6 {[%clk 0:01:26.1]} 35. Nf4 {[%clk 0:01:02.8]} 35...
g5 {[%clk 0:01:25.4]} 36. Ne2 {[%clk 0:01:00.6]} 36... Ke5 {[%clk 0:01:25.2]}
37. c4 {[%clk 0:01:00.6]} 37... Nd7 {[%clk 0:01:24.7]} 38. c5 {[%clk 0:00:56.6]}
38... Kd5 {[%clk 0:01:21.4]} 39. Nc3+ {[%clk 0:00:55.2]} 39... Kc6 {[%clk
0:01:20.6]} 40. Kc4 {[%clk 0:00:55]} 40... Ne5+ {[%clk 0:01:20.7]} 41. Kd4
{[%clk 0:00:40.9]} 41... Nf3+ {[%clk 0:01:21.1]} 42. Kc4 {[%clk 0:00:39.9]}
42... Nxh2 {[%clk 0:01:21.6]} 43. b5+ {[%clk 0:00:39.9]} 43... Kb7 {[%clk
0:01:19.9]} 44. c6+ {[%clk 0:00:38]} 44... Nxc6 {[%clk 0:01:18.8]} 45. bxc6+
{[%clk 0:00:37.9]} 45... Kxc6 {[%clk 0:01:19.7]} 46. Kd4 {[%clk 0:00:37.3]}
46... Kd6 {[%clk 0:01:15.9]} 47. Ke4 {[%clk 0:00:34]} 47... Ke6 {[%clk 0:01:15]}
48. Ne2 {[%clk 0:00:33.4]} 48... Ng4 {[%clk 0:01:11.3]} 49. Ng3 {[%clk
0:00:27.5]} 49... Nf6+ {[%clk 0:01:11.8]} 50. Kf3 {[%clk 0:00:26.6]} 50... h5
{[%clk 0:01:12.2]} 51. Nxh5 {[%clk 0:00:22.3]} 51... Nxh5 {[%clk 0:01:11.7]} 52.
Kg4 {[%clk 0:00:23.2]} 52... Kf6 {[%clk 0:01:09.6]} 53. Kxh5 {[%clk 0:00:23.2]}
53... Kf5 {[%clk 0:01:10.1]} 0-1

[Event "Late-Titled-Tuesday-Blitz-March-12-2024"]
[Site "Chess.com"]
[Date "2024.03.12"]
[Round "10"]
[White "Kavyev_Ruslan"]
[Black "Qingdom"]
[Result "0-1"]
[WhiteElo "2461"]
[BlackElo "2280"]
[TimeControl "180+1"]
[EndTime "15:52:51 PDT"]
[Termination "Qingdom won on time"]

1. d4 {[%clk 0:03:00.9]} 1... Nf6 {[%clk 0:02:59.3]} 2. Nf3 {[%clk 0:02:56.3]}
2... c5 {[%clk 0:02:58.9]} 3. d5 {[%clk 0:02:56]} 3... e6 {[%clk 0:02:58.8]} 4.
Nc3 {[%clk 0:02:52.7]} 4... exd5 {[%clk 0:02:58.9]} 5. Nxd5 {[%clk 0:02:51]}
5... Nxd5 {[%clk 0:02:58.2]} 6. Qxd5 {[%clk 0:02:51.5]} 6... Nc6 {[%clk
0:02:58.4]} 7. e4 {[%clk 0:02:45.6]} 7... Be7 {[%clk 0:02:53.3]} 8. Bc4 {[%clk
0:02:39.8]} 8... O-O {[%clk 0:02:52.9]} 9. Bf4 {[%clk 0:02:16.7]} 9... d6 {[%clk
0:02:46.6]} 10. Qd2 {[%clk 0:02:00.5]} 10... Be6 {[%clk 0:02:43.9]} 11. Bxe6
{[%clk 0:01:57.7]} 11... fxe6 {[%clk 0:02:44]} 12. O-O-O {[%clk 0:01:57.4]}
12... d5 {[%clk 0:02:34.3]} 13. exd5 {[%clk 0:01:47.8]} 13... exd5 {[%clk
0:02:33.9]} 14. g3 {[%clk 0:01:39.8]} 14... d4 {[%clk 0:02:32.7]} 15. h4 {[%clk
0:01:32.7]} 15... Qa5 {[%clk 0:02:27.5]} 16. Qxa5 {[%clk 0:01:27.1]} 16... Nxa5
{[%clk 0:02:27.5]} 17. Rhe1 {[%clk 0:01:24.9]} 17... Rae8 {[%clk 0:02:22.8]} 18.
Ne5 {[%clk 0:01:20.4]} 18... Bd6 {[%clk 0:02:17.8]} 19. Kb1 {[%clk 0:01:10.2]}
19... Bxe5 {[%clk 0:02:13.1]} 20. Bxe5 {[%clk 0:01:00.4]} 20... Rxf2 {[%clk
0:02:11.5]} 21. c3 {[%clk 0:00:59.9]} 21... Nc4 {[%clk 0:02:01.8]} 22. cxd4
{[%clk 0:00:53.6]} 22... Rxb2+ {[%clk 0:01:50.5]} 23. Ka1 {[%clk 0:00:52.8]}
23... cxd4 {[%clk 0:01:48]} 24. Bxd4 {[%clk 0:00:28.6]} 24... Rxe1 {[%clk
0:01:45.5]} 25. Rxe1 {[%clk 0:00:29.5]} 25... Rd2 {[%clk 0:01:36.6]} 26. Bc3
{[%clk 0:00:26.4]} 26... Rg2 {[%clk 0:01:34.5]} 27. Bd4 {[%clk 0:00:12.6]} 27...
a6 {[%clk 0:01:29.5]} 28. a4 {[%clk 0:00:10]} 28... Kf7 {[%clk 0:01:26.7]} 29.
Rf1+ {[%clk 0:00:09]} 29... Ke6 {[%clk 0:01:25.3]} 30. Bxg7 {[%clk 0:00:08.3]}
30... Rxg3 {[%clk 0:01:24.9]} 31. Re1+ {[%clk 0:00:07]} 31... Kd5 {[%clk
0:01:24.1]} 32. Bf6 {[%clk 0:00:05.8]} 32... Ra3+ {[%clk 0:01:21.5]} 33. Kb1
{[%clk 0:00:05.2]} 33... Rxa4 {[%clk 0:01:21.1]} 34. Re7 {[%clk 0:00:05.3]}
34... b5 {[%clk 0:01:19.9]} 35. Rxh7 {[%clk 0:00:04.6]} 35... Ra3 {[%clk
0:01:13.5]} 36. Bg5 {[%clk 0:00:04]} 36... a5 {[%clk 0:01:11.4]} 37. Rd7+ {[%clk
0:00:03.8]} 37... Kc6 {[%clk 0:01:07.6]} 38. Rd8 {[%clk 0:00:03.9]} 38... b4
{[%clk 0:01:06]} 39. h5 {[%clk 0:00:03.3]} 39... Rh3 {[%clk 0:01:05.3]} 40. h6
{[%clk 0:00:03]} 40... a4 {[%clk 0:01:02.4]} 41. Rc8+ {[%clk 0:00:01.6]} 41...
Kd5 {[%clk 0:01:00.6]} 42. Rd8+ {[%clk 0:00:01.6]} 42... Kc5 {[%clk 0:01:00.1]}
43. Rc8+ {[%clk 0:00:01.6]} 43... Kd4 {[%clk 0:01:00]} 0-1

[Event "Late-Titled-Tuesday-Blitz-March-12-2024"]
[Site "Chess.com"]
[Date "2024.03.12"]
[Round "10"]
[White "N_Mullodzhanov"]
[Black "ansko1999"]
[Result "1-0"]
[WhiteElo "2533"]
[BlackElo "2665"]
[TimeControl "180+1"]
[EndTime "15:52:57 PDT"]
[Termination "N_Mullodzhanov won on time"]

1. e4 {[%clk 0:03:00.9]} 1... d6 {[%clk 0:02:59.9]} 2. d4 {[%clk 0:03:00.4]}
2... Nf6 {[%clk 0:02:59.9]} 3. Nc3 {[%clk 0:03:00.4]} 3... c6 {[%clk 0:02:59.5]}
4. f4 {[%clk 0:03:00]} 4... Qb6 {[%clk 0:02:58.1]} 5. Nf3 {[%clk 0:02:58.8]}
5... Bg4 {[%clk 0:02:50]} 6. Be2 {[%clk 0:02:55.7]} 6... Nbd7 {[%clk 0:02:45]}
7. e5 {[%clk 0:02:47.5]} 7... Nd5 {[%clk 0:02:42.1]} 8. Nxd5 {[%clk 0:02:45.9]}
8... cxd5 {[%clk 0:02:41.7]} 9. h3 {[%clk 0:02:44.2]} 9... Bxf3 {[%clk
0:02:40.8]} 10. Bxf3 {[%clk 0:02:44]} 10... e6 {[%clk 0:02:40.9]} 11. c3 {[%clk
0:02:42.1]} 11... Be7 {[%clk 0:02:33.6]} 12. Qe2 {[%clk 0:02:40.7]} 12... O-O
{[%clk 0:02:31.7]} 13. O-O {[%clk 0:02:40.4]} 13... Rfc8 {[%clk 0:02:15.4]} 14.
Kh2 {[%clk 0:02:33.6]} 14... Qc7 {[%clk 0:02:13.6]} 15. a4 {[%clk 0:02:22.8]}
15... a6 {[%clk 0:02:12.8]} 16. a5 {[%clk 0:02:22.5]} 16... b5 {[%clk 0:02:09]}
17. axb6 {[%clk 0:02:17.7]} 17... Nxb6 {[%clk 0:02:08.8]} 18. Rxa6 {[%clk
0:02:15.9]} 18... Rxa6 {[%clk 0:02:00.2]} 19. Qxa6 {[%clk 0:02:16.8]} 19... g6
{[%clk 0:01:28]} 20. Qd3 {[%clk 0:02:07.7]} 20... h5 {[%clk 0:01:22.7]} 21. Rf2
{[%clk 0:01:49.4]} 21... h4 {[%clk 0:01:19.6]} 22. Be3 {[%clk 0:01:45.8]} 22...
Nc4 {[%clk 0:01:18]} 23. Rc2 {[%clk 0:01:43.9]} 23... g5 {[%clk 0:01:01]} 24. b3
{[%clk 0:01:26.8]} 24... Nxe3 {[%clk 0:01:00]} 25. Qxe3 {[%clk 0:01:26.7]} 25...
gxf4 {[%clk 0:00:58.6]} 26. Qxf4 {[%clk 0:01:27]} 26... dxe5 {[%clk 0:00:58.9]}
27. dxe5 {[%clk 0:01:23.8]} 27... Kf8 {[%clk 0:00:38]} 28. Bh5 {[%clk
0:01:16.2]} 28... f6 {[%clk 0:00:10.1]} 29. Rf2 {[%clk 0:01:16.2]} 29... Kg7
{[%clk 0:00:08.5]} 30. Qxh4 {[%clk 0:01:06.7]} 30... Qxe5+ {[%clk 0:00:08.5]}
31. g3 {[%clk 0:00:50]} 31... Rxc3 {[%clk 0:00:06.3]} 32. Qg4+ {[%clk
0:00:46.5]} 32... Kf8 {[%clk 0:00:04.3]} 33. Qg6 {[%clk 0:00:44.5]} 1-0

[Event "Late-Titled-Tuesday-Blitz-March-12-2024"]
[Site "Chess.com"]
[Date "2024.03.12"]
[Round "10"]
[White "MathiasWomacka"]
[Black "Mariia89"]
[Result "0-1"]
[WhiteElo "2508"]
[BlackElo "2264"]
[TimeControl "180+1"]
[EndTime "15:52:57 PDT"]
[Termination "Mariia89 won by resignation"]

1. e4 {[%clk 0:03:00.9]} 1... c6 {[%clk 0:02:59.2]} 2. d4 {[%clk 0:03:00]} 2...
d5 {[%clk 0:03:00.1]} 3. Nd2 {[%clk 0:02:58.6]} 3... dxe4 {[%clk 0:02:58.9]} 4.
Nxe4 {[%clk 0:02:59.5]} 4... Nf6 {[%clk 0:02:59.7]} 5. Nxf6+ {[%clk 0:02:59.4]}
5... exf6 {[%clk 0:03:00.6]} 6. Bc4 {[%clk 0:02:58.9]} 6... Be7 {[%clk
0:03:00.8]} 7. Ne2 {[%clk 0:02:56.7]} 7... Na6 {[%clk 0:02:59.5]} 8. O-O {[%clk
0:02:56.2]} 8... Nc7 {[%clk 0:02:58.4]} 9. Bf4 {[%clk 0:02:52.8]} 9... Nd5
{[%clk 0:02:57.4]} 10. Bg3 {[%clk 0:02:48.6]} 10... O-O {[%clk 0:02:57.4]} 11.
Nf4 {[%clk 0:02:41.3]} 11... Nxf4 {[%clk 0:02:55.1]} 12. Bxf4 {[%clk 0:02:42]}
12... Bf5 {[%clk 0:02:55.7]} 13. c3 {[%clk 0:02:40.3]} 13... Qd7 {[%clk
0:02:52.6]} 14. Qd2 {[%clk 0:02:39.9]} 14... Rfe8 {[%clk 0:02:48]} 15. Rfe1
{[%clk 0:02:39.3]} 15... Bf8 {[%clk 0:02:47.9]} 16. h3 {[%clk 0:02:36.4]} 16...
Rxe1+ {[%clk 0:02:43.2]} 17. Rxe1 {[%clk 0:02:35.4]} 17... Re8 {[%clk
0:02:44.1]} 18. Rxe8 {[%clk 0:02:31.9]} 18... Qxe8 {[%clk 0:02:45]} 19. a4
{[%clk 0:02:21.3]} 19... Qe4 {[%clk 0:02:36.1]} 20. a5 {[%clk 0:02:12.4]} 20...
Be6 {[%clk 0:02:30.6]} 21. Bd3 {[%clk 0:02:06.9]} 21... Qd5 {[%clk 0:02:27.9]}
22. b4 {[%clk 0:02:06.6]} 22... Qb3 {[%clk 0:02:24.2]} 23. Kh2 {[%clk
0:01:59.4]} 23... Bd5 {[%clk 0:02:23.9]} 24. Qe1 {[%clk 0:01:48.9]} 24... Be6
{[%clk 0:02:21.8]} 25. Be4 {[%clk 0:01:40.9]} 25... Qc4 {[%clk 0:02:18.4]} 26.
Bf3 {[%clk 0:01:40.3]} 26... Qb3 {[%clk 0:02:10.3]} 27. a6 {[%clk 0:01:35.7]}
27... bxa6 {[%clk 0:02:05.5]} 28. Bxc6 {[%clk 0:01:35.2]} 28... g5 {[%clk
0:01:56.5]} 29. Bg3 {[%clk 0:01:26.8]} 29... Qc4 {[%clk 0:01:53]} 30. Bf3 {[%clk
0:01:24.6]} 30... Kg7 {[%clk 0:01:43.6]} 31. Be2 {[%clk 0:01:21.8]} 31... Qc6
{[%clk 0:01:40.4]} 32. Qa1 {[%clk 0:01:19.2]} 32... Bc8 {[%clk 0:01:40.4]} 33.
c4 {[%clk 0:01:17.1]} 33... Bxb4 {[%clk 0:01:39.6]} 34. d5 {[%clk 0:01:16.9]}
34... Qb6 {[%clk 0:01:29.7]} 35. Qa4 {[%clk 0:01:05.8]} 35... Bc5 {[%clk
0:01:26.8]} 36. Qe8 {[%clk 0:01:02.2]} 36... Bf5 {[%clk 0:01:25.8]} 37. Qd8
{[%clk 0:00:59.3]} 37... Bxf2 {[%clk 0:01:15.1]} 38. Bc7 {[%clk 0:00:55.8]}
38... Bg1+ {[%clk 0:01:09.8]} 39. Kh1 {[%clk 0:00:54.7]} 39... Qf2 {[%clk
0:01:10]} 40. Bd6 {[%clk 0:00:47.6]} 40... Be4 {[%clk 0:00:26.2]} 41. Qg8+
{[%clk 0:00:43.7]} 41... Kxg8 {[%clk 0:00:25.5]} 0-1

[Event "Late-Titled-Tuesday-Blitz-March-12-2024"]
[Site "Chess.com"]
[Date "2024.03.12"]
[Round "10"]
[White "NelsonLinda"]
[Black "cthulhuuu"]
[Result "1-0"]
[WhiteElo "2652"]
[BlackElo "2441"]
[TimeControl "180+1"]
[EndTime "15:52:58 PDT"]
[Termination "NelsonLinda won on time"]

1. b3 {[%clk 0:03:00.9]} 1... Nf6 {[%clk 0:02:59.9]} 2. Bb2 {[%clk 0:03:01.3]}
2... g6 {[%clk 0:03:00.4]} 3. Bxf6 {[%clk 0:03:00.7]} 3... exf6 {[%clk
0:03:01.3]} 4. c4 {[%clk 0:03:01.6]} 4... f5 {[%clk 0:03:00.7]} 5. Nc3 {[%clk
0:03:01.4]} 5... Bg7 {[%clk 0:03:01]} 6. Rc1 {[%clk 0:03:01.2]} 6... b6 {[%clk
0:03:00.3]} 7. Nf3 {[%clk 0:02:55.7]} 7... Bb7 {[%clk 0:02:59.8]} 8. e3 {[%clk
0:02:55.7]} 8... O-O {[%clk 0:02:58.3]} 9. Be2 {[%clk 0:02:55.6]} 9... d6 {[%clk
0:02:58.5]} 10. O-O {[%clk 0:02:55.4]} 10... Nd7 {[%clk 0:02:58.7]} 11. d4
{[%clk 0:02:54.6]} 11... Nf6 {[%clk 0:02:43.5]} 12. Ne1 {[%clk 0:02:51.4]} 12...
Ne4 {[%clk 0:02:42.9]} 13. Bf3 {[%clk 0:02:51.1]} 13... Nxc3 {[%clk 0:02:40.7]}
14. Rxc3 {[%clk 0:02:50.5]} 14... Bxf3 {[%clk 0:02:36]} 15. Qxf3 {[%clk
0:02:49.5]} 15... c5 {[%clk 0:02:28.8]} 16. Nc2 {[%clk 0:02:48]} 16... Qe7
{[%clk 0:02:09.6]} 17. Rd3 {[%clk 0:02:41.1]} 17... Qe4 {[%clk 0:02:04.9]} 18.
Qxe4 {[%clk 0:02:40.9]} 18... fxe4 {[%clk 0:02:04.9]} 19. Rd2 {[%clk 0:02:40.7]}
19... Rad8 {[%clk 0:01:58.7]} 20. Rfd1 {[%clk 0:02:38.6]} 20... Bf6 {[%clk
0:01:52.6]} 21. f3 {[%clk 0:02:21.1]} 21... exf3 {[%clk 0:01:48.5]} 22. gxf3
{[%clk 0:02:22]} 22... d5 {[%clk 0:01:22.9]} 23. dxc5 {[%clk 0:02:19.4]} 23...
dxc4 {[%clk 0:01:21.9]} 24. Rxd8 {[%clk 0:02:19]} 24... Bxd8 {[%clk 0:01:04.1]}
25. c6 {[%clk 0:02:13.5]} 25... cxb3 {[%clk 0:01:02.6]} 26. axb3 {[%clk
0:02:13]} 26... b5 {[%clk 0:00:32.9]} 27. Rd5 {[%clk 0:01:40.7]} 27... a6 {[%clk
0:00:29.5]} 28. Nb4 {[%clk 0:01:40.3]} 28... Bb6 {[%clk 0:00:17.8]} 29. Nxa6
{[%clk 0:01:40.3]} 29... Rc8 {[%clk 0:00:17.1]} 30. c7 {[%clk 0:01:35.3]} 30...
Bxe3+ {[%clk 0:00:02.5]} 31. Kf1 {[%clk 0:01:35.3]} 31... Bb6 {[%clk 0:00:02.3]}
32. Rxb5 {[%clk 0:01:34.9]} 32... Bxc7 {[%clk 0:00:01.9]} 33. Rc5 {[%clk
0:01:34.6]} 33... Ra8 {[%clk 0:00:01.6]} 34. Nxc7 {[%clk 0:01:34.8]} 34... Ra1+
{[%clk 0:00:01.5]} 35. Kg2 {[%clk 0:01:34.6]} 35... Ra2+ {[%clk 0:00:02.1]} 36.
Kg3 {[%clk 0:01:34.9]} 36... Rb2 {[%clk 0:00:02.6]} 37. Rc3 {[%clk 0:01:34.7]}
37... h5 {[%clk 0:00:02.5]} 38. Rd3 {[%clk 0:01:34.9]} 38... g5 {[%clk
0:00:02.5]} 39. h4 {[%clk 0:01:35.1]} 39... gxh4+ {[%clk 0:00:02.3]} 40. Kxh4
{[%clk 0:01:36]} 40... Rh2+ {[%clk 0:00:01.7]} 41. Kg3 {[%clk 0:01:34.6]} 41...
Rb2 {[%clk 0:00:02.2]} 42. Nd5 {[%clk 0:01:35]} 42... Kg7 {[%clk 0:00:02.5]} 43.
b4 {[%clk 0:01:35.4]} 43... Kg6 {[%clk 0:00:02.7]} 44. Rd4 {[%clk 0:01:32.7]}
44... Kg5 {[%clk 0:00:02.8]} 45. Nc7 {[%clk 0:01:30.2]} 45... f5 {[%clk
0:00:02.1]} 46. f4+ {[%clk 0:01:28.3]} 46... Kg6 {[%clk 0:00:01.5]} 47. Rd6+
{[%clk 0:01:28.4]} 47... Kf7 {[%clk 0:00:01.8]} 48. Nd5 {[%clk 0:01:28.1]} 48...
Rd2 {[%clk 0:00:01.2]} 49. Rf6+ {[%clk 0:01:28]} 49... Kg7 {[%clk 0:00:01.1]}
50. Rxf5 {[%clk 0:01:28.9]} 1-0

[Event "Late-Titled-Tuesday-Blitz-March-12-2024"]
[Site "Chess.com"]
[Date "2024.03.12"]
[Round "10"]
[White "finec2"]
[Black "Zampronha1971"]
[Result "1-0"]
[WhiteElo "2215"]
[BlackElo "2321"]
[TimeControl "180+1"]
[EndTime "15:52:59 PDT"]
[Termination "finec2 won by resignation"]

1. e4 {[%clk 0:02:59.3]} 1... c5 {[%clk 0:02:59.6]} 2. Nf3 {[%clk 0:02:59.5]}
2... e6 {[%clk 0:02:59.9]} 3. d4 {[%clk 0:02:58.3]} 3... cxd4 {[%clk 0:03:00.8]}
4. Nxd4 {[%clk 0:02:58.3]} 4... Nc6 {[%clk 0:03:01.5]} 5. Nc3 {[%clk 0:02:58]}
5... Qc7 {[%clk 0:03:00.5]} 6. Be2 {[%clk 0:02:56]} 6... a6 {[%clk 0:03:01.1]}
7. O-O {[%clk 0:02:55.7]} 7... Nf6 {[%clk 0:03:01.7]} 8. Be3 {[%clk 0:02:54.7]}
8... Bb4 {[%clk 0:03:02.1]} 9. Na4 {[%clk 0:02:54.5]} 9... O-O {[%clk
0:02:57.9]} 10. c4 {[%clk 0:02:54.4]} 10... Nxe4 {[%clk 0:02:44.8]} 11. c5
{[%clk 0:02:37.1]} 11... Ba5 {[%clk 0:02:25.6]} 12. a3 {[%clk 0:02:25.9]} 12...
Qd8 {[%clk 0:02:25.3]} 13. b4 {[%clk 0:02:25.1]} 13... Bc7 {[%clk 0:02:25.9]}
14. Bd3 {[%clk 0:02:14.3]} 14... f5 {[%clk 0:02:12.3]} 15. Bxe4 {[%clk
0:01:51.9]} 15... fxe4 {[%clk 0:02:13.2]} 16. Qg4 {[%clk 0:01:51.4]} 16... Nxd4
{[%clk 0:01:56.1]} 17. Bxd4 {[%clk 0:01:49.9]} 17... e5 {[%clk 0:01:56.7]} 18.
Qxe4 {[%clk 0:01:14.4]} 18... exd4 {[%clk 0:01:52]} 19. Qxd4 {[%clk 0:01:15.3]}
19... Qf6 {[%clk 0:01:46.5]} 20. Qd5+ {[%clk 0:01:06.7]} 20... Qf7 {[%clk
0:01:44.4]} 21. Qd4 {[%clk 0:01:03.8]} 21... Qf4 {[%clk 0:01:38.2]} 22. Qd5+
{[%clk 0:01:02.8]} 22... Kh8 {[%clk 0:01:38.7]} 23. g3 {[%clk 0:01:02.4]} 23...
Qf7 {[%clk 0:01:38.5]} 24. Qd4 {[%clk 0:01:02.1]} 24... Bd8 {[%clk 0:01:33.9]}
25. Rad1 {[%clk 0:00:58.1]} 25... Bf6 {[%clk 0:01:34.2]} 26. Qd6 {[%clk
0:00:57.3]} 26... Qe7 {[%clk 0:01:28.2]} 27. Qd5 {[%clk 0:00:46.2]} 27... Qe6
{[%clk 0:01:20.4]} 28. Qd3 {[%clk 0:00:31.5]} 28... Qh3 {[%clk 0:01:19.1]} 29.
Nb6 {[%clk 0:00:27.5]} 29... Rb8 {[%clk 0:01:18.5]} 30. Qd6 {[%clk 0:00:26.4]}
30... Re8 {[%clk 0:00:44.2]} 31. Rfe1 {[%clk 0:00:22.3]} 31... Rd8 {[%clk
0:00:40.3]} 32. Qxb8 {[%clk 0:00:21.2]} 32... d5 {[%clk 0:00:37.5]} 33. cxd6
{[%clk 0:00:13.7]} 33... Bg4 {[%clk 0:00:38.1]} 34. Re8+ {[%clk 0:00:13.2]} 1-0

[Event "Late-Titled-Tuesday-Blitz-March-12-2024"]
[Site "Chess.com"]
[Date "2024.03.12"]
[Round "10"]
[White "DenLaz"]
[Black "jefferyx"]
[Result "1/2-1/2"]
[WhiteElo "3072"]
[BlackElo "3097"]
[TimeControl "180+1"]
[EndTime "15:53:03 PDT"]
[Termination "Game drawn by agreement"]

1. d4 {[%clk 0:03:00.9]} 1... g6 {[%clk 0:03:00.5]} 2. c4 {[%clk 0:03:01.2]}
2... Nf6 {[%clk 0:02:57.7]} 3. Nf3 {[%clk 0:03:00.8]} 3... Bg7 {[%clk
0:02:57.9]} 4. g3 {[%clk 0:03:01.4]} 4... c5 {[%clk 0:02:57.3]} 5. Bg2 {[%clk
0:02:57.6]} 5... cxd4 {[%clk 0:02:57.1]} 6. Nxd4 {[%clk 0:02:58.5]} 6... O-O
{[%clk 0:02:56.2]} 7. Nc3 {[%clk 0:02:58.5]} 7... Nc6 {[%clk 0:02:56.3]} 8. O-O
{[%clk 0:02:58.7]} 8... Qa5 {[%clk 0:02:56.4]} 9. Nb3 {[%clk 0:02:46]} 9... Qh5
{[%clk 0:02:52.4]} 10. Nd5 {[%clk 0:02:46.6]} 10... d6 {[%clk 0:02:33.4]} 11.
Nf4 {[%clk 0:02:46.6]} 11... Qe5 {[%clk 0:02:28.5]} 12. Nd2 {[%clk 0:02:18.9]}
12... a5 {[%clk 0:01:56.4]} 13. Nf3 {[%clk 0:02:11.8]} 13... Qc5 {[%clk
0:01:56]} 14. b3 {[%clk 0:02:11.2]} 14... a4 {[%clk 0:01:47.6]} 15. Bb2 {[%clk
0:02:10.4]} 15... Bf5 {[%clk 0:01:37.1]} 16. e3 {[%clk 0:01:34]} 16... Be4
{[%clk 0:01:22]} 17. Nd2 {[%clk 0:01:29.1]} 17... Bxg2 {[%clk 0:01:21.3]} 18.
Kxg2 {[%clk 0:01:30]} 18... b5 {[%clk 0:01:18.8]} 19. Rc1 {[%clk 0:01:13.3]}
19... Ne5 {[%clk 0:01:00.3]} 20. Nf3 {[%clk 0:00:58]} 20... axb3 {[%clk
0:00:55.1]} 21. axb3 {[%clk 0:00:57]} 21... bxc4 {[%clk 0:00:52.5]} 22. Bxe5
{[%clk 0:00:55.6]} 22... dxe5 {[%clk 0:00:53.4]} 23. Rxc4 {[%clk 0:00:56.3]}
23... Qb5 {[%clk 0:00:52]} 24. Ne2 {[%clk 0:00:56.9]} 24... Rab8 {[%clk
0:00:47.8]} 25. Qc2 {[%clk 0:00:18]} 25... Qxb3 {[%clk 0:00:46.6]} 26. Nxe5
{[%clk 0:00:18.3]} 26... Qb7+ {[%clk 0:00:39.9]} 27. Nf3 {[%clk 0:00:16.5]}
27... Rfc8 {[%clk 0:00:37.9]} 28. Rxc8+ {[%clk 0:00:15.6]} 28... Rxc8 {[%clk
0:00:38.1]} 29. Qb1 {[%clk 0:00:16.1]} 29... Qxb1 {[%clk 0:00:35.7]} 30. Rxb1
{[%clk 0:00:15.7]} 30... Nd5 {[%clk 0:00:36.6]} 31. Rd1 {[%clk 0:00:15.5]} 31...
e6 {[%clk 0:00:36.8]} 32. Rd2 {[%clk 0:00:15.7]} 32... Bf6 {[%clk 0:00:35]} 33.
h4 {[%clk 0:00:15.7]} 33... h6 {[%clk 0:00:34.9]} 34. Nh2 {[%clk 0:00:14.5]}
34... Kg7 {[%clk 0:00:34.3]} 35. Nf3 {[%clk 0:00:14.8]} 35... g5 {[%clk
0:00:34.2]} 36. hxg5 {[%clk 0:00:14.8]} 36... hxg5 {[%clk 0:00:35.1]} 37. Nh2
{[%clk 0:00:15.1]} 37... Kg6 {[%clk 0:00:35.7]} 38. Ng4 {[%clk 0:00:14.4]} 38...
Bg7 {[%clk 0:00:35.5]} 39. Nh2 {[%clk 0:00:13.9]} 39... Rb8 {[%clk 0:00:33.3]}
40. Rc2 {[%clk 0:00:13.7]} 40... Rb2 {[%clk 0:00:31.8]} 41. Rxb2 {[%clk
0:00:13.6]} 1/2-1/2